[Event "*** Titled Tuesday Blitz"]
[Site "Chess.com"]
[Date "2020.05.05"]
[Round "2"]
[White "olksuna"]
[Black "drinbet"]
[Result "1-0"]
[WhiteElo "2605"]
[BlackElo "2308"]
[TimeControl "180+1"]
[EndTime "10:17:17 PDT"]
[Termination "olksuna won by resignation"]

1. Nf3 {[%clk 0:03:00.9]} 1... d5 {[%clk 0:02:57.5]} 2. d4 {[%clk 0:03:01.1]}
2... c6 {[%clk 0:02:57.4]} 3. c4 {[%clk 0:03:01.4]} 3... e6 {[%clk 0:02:57.1]}
4. Nc3 {[%clk 0:03:00]} 4... f5 {[%clk 0:02:57]} 5. Bf4 {[%clk 0:02:59.4]} 5...
Nf6 {[%clk 0:02:56.9]} 6. e3 {[%clk 0:02:59.6]} 6... Be7 {[%clk 0:02:55.6]} 7.
Bd3 {[%clk 0:02:59.6]} 7... O-O {[%clk 0:02:55.5]} 8. h3 {[%clk 0:03:00.2]} 8...
Ne4 {[%clk 0:02:55.4]} 9. Qc2 {[%clk 0:02:55.3]} 9... Nd7 {[%clk 0:02:54.4]} 10.
g4 {[%clk 0:02:55.6]} 10... Ndf6 {[%clk 0:02:51.7]} 11. gxf5 {[%clk 0:02:54]}
11... exf5 {[%clk 0:02:51.1]} 12. Ne5 {[%clk 0:02:54.4]} 12... Bd6 {[%clk
0:02:45.3]} 13. Rg1 {[%clk 0:02:53.7]} 13... Kh8 {[%clk 0:02:43.8]} 14. O-O-O
{[%clk 0:02:53]} 14... Be6 {[%clk 0:02:34.5]} 15. Kb1 {[%clk 0:02:50.6]} 15...
dxc4 {[%clk 0:02:10.1]} 16. Bxe4 {[%clk 0:02:44.1]} 16... Nxe4 {[%clk
0:02:04.9]} 17. Nxe4 {[%clk 0:02:41.9]} 17... fxe4 {[%clk 0:02:04.9]} 18. Rg3
{[%clk 0:02:31.1]} 18... Qe7 {[%clk 0:01:47.4]} 19. Rdg1 {[%clk 0:02:28.2]}
19... Rg8 {[%clk 0:01:45.6]} 20. Qxe4 {[%clk 0:02:27.3]} 20... Raf8 {[%clk
0:01:42]} 21. Rg5 {[%clk 0:02:12.3]} 21... Rf6 {[%clk 0:01:11.6]} 22. Ka1 {[%clk
0:01:45.8]} 22... g6 {[%clk 0:00:59.7]} 23. h4 {[%clk 0:01:33.8]} 23... Bf5
{[%clk 0:00:59.4]} 24. Qg2 {[%clk 0:01:31.5]} 24... b5 {[%clk 0:00:53.5]} 25. h5
{[%clk 0:01:30.8]} 25... b4 {[%clk 0:00:53.7]} 26. hxg6 {[%clk 0:01:30.4]} 26...
Bxg6 {[%clk 0:00:41.6]} 27. Rh1 {[%clk 0:01:27.1]} 27... Qg7 {[%clk 0:00:29]}
28. Qh2 {[%clk 0:01:13.2]} 28... Bf8 {[%clk 0:00:22.6]} 29. Nxg6+ {[%clk
0:00:52.7]} 29... Rxg6 {[%clk 0:00:22.2]} 30. Be5 {[%clk 0:00:49.5]} 1-0

[Event "*** Titled Tuesday Blitz"]
[Site "Chess.com"]
[Date "2020.05.05"]
[Round "2"]
[White "fmshawnrl123"]
[Black "awesomevishesh"]
[Result "1-0"]
[WhiteElo "2688"]
[BlackElo "2475"]
[TimeControl "180+1"]
[EndTime "10:17:18 PDT"]
[Termination "fmshawnrl123 won on time"]

1. c4 {[%clk 0:03:00.9]} 1... e5 {[%clk 0:02:59.1]} 2. g3 {[%clk 0:03:01]} 2...
Nf6 {[%clk 0:02:57.1]} 3. Bg2 {[%clk 0:03:00.8]} 3... c6 {[%clk 0:02:54.1]} 4.
d4 {[%clk 0:02:58]} 4... e4 {[%clk 0:02:52.8]} 5. Nc3 {[%clk 0:02:57.6]} 5... d5
{[%clk 0:02:46.4]} 6. Bg5 {[%clk 0:02:56.5]} 6... Nbd7 {[%clk 0:02:37.5]} 7.
cxd5 {[%clk 0:02:49.1]} 7... cxd5 {[%clk 0:02:37.2]} 8. e3 {[%clk 0:02:49.7]}
8... h6 {[%clk 0:02:36]} 9. Bxf6 {[%clk 0:02:49.3]} 9... Nxf6 {[%clk 0:02:36.9]}
10. Nge2 {[%clk 0:02:49.7]} 10... Be6 {[%clk 0:01:52]} 11. O-O {[%clk
0:02:47.8]} 11... Qd7 {[%clk 0:01:51.4]} 12. Nf4 {[%clk 0:02:45.9]} 12... Bd6
{[%clk 0:01:44.4]} 13. Nxe6 {[%clk 0:02:42.5]} 13... fxe6 {[%clk 0:01:44.1]} 14.
Qb3 {[%clk 0:02:39]} 14... O-O {[%clk 0:01:42.9]} 15. Rac1 {[%clk 0:02:38.9]}
15... Rac8 {[%clk 0:01:34.6]} 16. Bh3 {[%clk 0:02:38.4]} 16... Qe7 {[%clk
0:01:08.4]} 17. Rc2 {[%clk 0:02:31.7]} 17... Rc6 {[%clk 0:01:06]} 18. Rfc1
{[%clk 0:02:30.1]} 18... Rfc8 {[%clk 0:00:38.2]} 19. Nb5 {[%clk 0:02:29.9]}
19... a6 {[%clk 0:00:29.3]} 20. Rxc6 {[%clk 0:01:33.7]} 20... bxc6 {[%clk
0:00:13]} 21. Na7 {[%clk 0:01:19.7]} 21... Rc7 {[%clk 0:00:04.9]} 22. Nxc6
{[%clk 0:01:17.6]} 22... Qd7 {[%clk 0:00:02.6]} 23. Qb6 {[%clk 0:01:17.8]} 23...
Kh7 {[%clk 0:00:02.2]} 24. Rc3 {[%clk 0:01:16.1]} 24... g5 {[%clk 0:00:02.2]}
25. Bf1 {[%clk 0:01:10.8]} 25... Kg6 {[%clk 0:00:01.9]} 26. Bxa6 {[%clk
0:01:10.5]} 26... h5 {[%clk 0:00:02.2]} 27. Bb5 {[%clk 0:01:03.7]} 27... Qc8
{[%clk 0:00:02.1]} 28. Ne7+ {[%clk 0:01:02.1]} 1-0

[Event "*** Titled Tuesday Blitz"]
[Site "Chess.com"]
[Date "2020.05.05"]
[Round "2"]
[White "Berardino"]
[Black "Bodnar_Mykola"]
[Result "1-0"]
[WhiteElo "2662"]
[BlackElo "2429"]
[TimeControl "180+1"]
[EndTime "10:17:21 PDT"]
[Termination "Berardino won by resignation"]

1. e4 {[%clk 0:03:00.9]} 1... c5 {[%clk 0:02:54.3]} 2. Nf3 {[%clk 0:03:00.9]}
2... d6 {[%clk 0:02:53.4]} 3. d4 {[%clk 0:03:00.9]} 3... cxd4 {[%clk 0:02:53.5]}
4. Nxd4 {[%clk 0:03:01.8]} 4... Nf6 {[%clk 0:02:53.4]} 5. Nc3 {[%clk 0:03:02.2]}
5... a6 {[%clk 0:02:53]} 6. a3 {[%clk 0:03:02.1]} 6... e5 {[%clk 0:02:51.8]} 7.
Nf5 {[%clk 0:03:01.4]} 7... Bxf5 {[%clk 0:02:50.4]} 8. exf5 {[%clk 0:03:02.3]}
8... d5 {[%clk 0:02:50.7]} 9. Bg5 {[%clk 0:03:02.3]} 9... d4 {[%clk 0:02:49.9]}
10. Bxf6 {[%clk 0:03:02.2]} 10... Qxf6 {[%clk 0:02:48.5]} 11. Nd5 {[%clk
0:02:59.3]} 11... Qc6 {[%clk 0:02:26.6]} 12. c4 {[%clk 0:02:55.3]} 12... Nd7
{[%clk 0:02:25.9]} 13. Bd3 {[%clk 0:02:50.8]} 13... a5 {[%clk 0:02:17.1]} 14.
O-O {[%clk 0:02:46.3]} 14... Nf6 {[%clk 0:02:11]} 15. Re1 {[%clk 0:02:39.9]}
15... Nxd5 {[%clk 0:01:46.7]} 16. Be4 {[%clk 0:02:12.5]} 16... Be7 {[%clk
0:01:38.2]} 17. Bxd5 {[%clk 0:02:11.3]} 17... Qc7 {[%clk 0:01:38.4]} 18. Qa4+
{[%clk 0:02:06.6]} 18... Kf8 {[%clk 0:01:36.7]} 19. b4 {[%clk 0:02:00.1]} 19...
g6 {[%clk 0:01:34.3]} 20. Qb5 {[%clk 0:01:47]} 20... Ra7 {[%clk 0:01:14.5]} 21.
Be4 {[%clk 0:01:40.2]} 21... Kg7 {[%clk 0:01:10.7]} 22. c5 {[%clk 0:01:39.2]}
22... axb4 {[%clk 0:01:06.2]} 23. axb4 {[%clk 0:01:38.8]} 23... Rha8 {[%clk
0:01:04.8]} 24. Rab1 {[%clk 0:01:38.3]} 24... f6 {[%clk 0:01:00.1]} 25. g3
{[%clk 0:01:30.1]} 25... g5 {[%clk 0:00:56.8]} 26. Qe2 {[%clk 0:01:28.3]} 26...
Ra2 {[%clk 0:00:53.2]} 27. Qh5 {[%clk 0:01:23]} 27... Rd2 {[%clk 0:00:43.8]} 28.
h4 {[%clk 0:01:22.2]} 28... gxh4 {[%clk 0:00:42]} 29. gxh4 {[%clk 0:01:04.4]}
29... Raa2 {[%clk 0:00:35.3]} 30. Rb3 {[%clk 0:01:04.1]} 30... Rxf2 {[%clk
0:00:21.6]} 31. Rg3+ {[%clk 0:01:04]} 31... Kf8 {[%clk 0:00:21.7]} 32. Bd5
{[%clk 0:00:59.2]} 1-0

[Event "*** Titled Tuesday Blitz"]
[Site "Chess.com"]
[Date "2020.05.05"]
[Round "2"]
[White "Azeryahu"]
[Black "IMRosen"]
[Result "1-0"]
[WhiteElo "2894"]
[BlackElo "2563"]
[TimeControl "180+1"]
[EndTime "10:17:22 PDT"]
[Termination "Azeryahu won by resignation"]

1. e4 {[%clk 0:03:00.9]} 1... c5 {[%clk 0:02:59.4]} 2. Nc3 {[%clk 0:03:00]} 2...
e6 {[%clk 0:02:57.9]} 3. Nge2 {[%clk 0:02:59.4]} 3... Nc6 {[%clk 0:02:57.7]} 4.
d3 {[%clk 0:02:59.1]} 4... a6 {[%clk 0:02:54.2]} 5. g4 {[%clk 0:02:58.6]} 5...
b5 {[%clk 0:02:54]} 6. Bg2 {[%clk 0:02:57.9]} 6... Bb7 {[%clk 0:02:41.5]} 7. O-O
{[%clk 0:02:58.1]} 7... b4 {[%clk 0:02:41.6]} 8. Na4 {[%clk 0:02:56.9]} 8... d6
{[%clk 0:02:08.2]} 9. f4 {[%clk 0:02:57]} 9... Nf6 {[%clk 0:02:08.1]} 10. Ng3
{[%clk 0:02:55.7]} 10... Be7 {[%clk 0:01:58.3]} 11. Be3 {[%clk 0:02:35.1]} 11...
Nd7 {[%clk 0:01:54.3]} 12. g5 {[%clk 0:02:31.5]} 12... Qc7 {[%clk 0:01:45.5]}
13. c3 {[%clk 0:02:30.3]} 13... a5 {[%clk 0:01:45.1]} 14. a3 {[%clk 0:02:29.3]}
14... bxc3 {[%clk 0:01:37.2]} 15. bxc3 {[%clk 0:02:28.6]} 15... O-O {[%clk
0:01:04]} 16. h4 {[%clk 0:02:26.9]} 16... Rfe8 {[%clk 0:01:01.4]} 17. h5 {[%clk
0:02:26]} 17... Nf8 {[%clk 0:00:52.9]} 18. d4 {[%clk 0:02:24.9]} 18... cxd4
{[%clk 0:00:49.5]} 19. cxd4 {[%clk 0:02:25.8]} 19... Ba6 {[%clk 0:00:43.9]} 20.
Rf2 {[%clk 0:02:23.6]} 20... e5 {[%clk 0:00:27.4]} 21. Nf5 {[%clk 0:02:18.2]}
21... Nxd4 {[%clk 0:00:20.9]} 22. Bxd4 {[%clk 0:02:00.4]} 22... exd4 {[%clk
0:00:21.8]} 23. h6 {[%clk 0:02:00.4]} 23... g6 {[%clk 0:00:19.3]} 24. Nxe7+
{[%clk 0:01:59.9]} 24... Rxe7 {[%clk 0:00:18.6]} 25. Qxd4 {[%clk 0:02:00.8]}
25... Ne6 {[%clk 0:00:19.4]} 26. Qf6 {[%clk 0:02:01.2]} 26... Qc4 {[%clk
0:00:06.8]} 27. f5 {[%clk 0:01:57.3]} 27... Rae8 {[%clk 0:00:01.9]} 28. fxe6
{[%clk 0:01:55.9]} 28... fxe6 {[%clk 0:00:02.8]} 29. Raf1 {[%clk 0:01:53.3]}
29... Qc8 {[%clk 0:00:01.9]} 30. Nb6 {[%clk 0:01:51.5]} 30... Qd8 {[%clk
0:00:01.9]} 31. Rb1 {[%clk 0:01:27.5]} 31... Bf1 {[%clk 0:00:02.6]} 32. Rfxf1
{[%clk 0:01:24.2]} 32... e5 {[%clk 0:00:02]} 33. Nd5 {[%clk 0:01:22.4]} 33...
Rd7 {[%clk 0:00:01.8]} 34. Qxd8 {[%clk 0:01:21.1]} 34... Rexd8 {[%clk
0:00:02.7]} 35. Nf6+ {[%clk 0:01:21.4]} 35... Kh8 {[%clk 0:00:03.3]} 36. Nxd7
{[%clk 0:01:21.4]} 36... a4 {[%clk 0:00:04]} 1-0

[Event "*** Titled Tuesday Blitz"]
[Site "Chess.com"]
[Date "2020.05.05"]
[Round "2"]
[White "Jeffinho023"]
[Black "Susal_De_Silva"]
[Result "1-0"]
[WhiteElo "2460"]
[BlackElo "2230"]
[TimeControl "180+1"]
[EndTime "10:17:22 PDT"]
[Termination "Jeffinho023 won by resignation"]

1. d4 {[%clk 0:03:00.9]} 1... Nf6 {[%clk 0:02:59.8]} 2. Nf3 {[%clk 0:03:00.4]}
2... e6 {[%clk 0:03:00]} 3. Bf4 {[%clk 0:03:00.3]} 3... d5 {[%clk 0:02:59.2]} 4.
e3 {[%clk 0:03:00.4]} 4... Bd6 {[%clk 0:02:59.4]} 5. Bg3 {[%clk 0:03:00.2]} 5...
O-O {[%clk 0:02:59.4]} 6. Bd3 {[%clk 0:02:59.7]} 6... c5 {[%clk 0:02:59.3]} 7.
c3 {[%clk 0:02:59.8]} 7... b6 {[%clk 0:02:59]} 8. Nbd2 {[%clk 0:02:59.7]} 8...
Bb7 {[%clk 0:02:59.5]} 9. Qe2 {[%clk 0:02:59.6]} 9... Nc6 {[%clk 0:02:59.4]} 10.
Rd1 {[%clk 0:02:59.5]} 10... Ne7 {[%clk 0:02:58]} 11. e4 {[%clk 0:02:59.1]}
11... dxe4 {[%clk 0:02:52]} 12. Nxe4 {[%clk 0:02:59.6]} 12... Nxe4 {[%clk
0:02:38.6]} 13. Bxe4 {[%clk 0:02:57.2]} 13... Bxe4 {[%clk 0:02:35.4]} 14. Qxe4
{[%clk 0:02:57]} 14... c4 {[%clk 0:02:32.1]} 15. Bxd6 {[%clk 0:02:23.5]} 15...
Qxd6 {[%clk 0:02:30.4]} 16. Ne5 {[%clk 0:02:24]} 16... Qd5 {[%clk 0:02:26]} 17.
Qxd5 {[%clk 0:02:23.7]} 17... exd5 {[%clk 0:02:24.5]} 18. Kd2 {[%clk 0:02:23.4]}
18... f6 {[%clk 0:02:18.7]} 19. Nf3 {[%clk 0:02:21.9]} 19... Nf5 {[%clk
0:02:15]} 20. g4 {[%clk 0:02:20]} 20... Nd6 {[%clk 0:02:14.1]} 21. Rde1 {[%clk
0:02:15.1]} 21... Rfe8 {[%clk 0:02:08.6]} 22. Re3 {[%clk 0:02:01.7]} 22... Ne4+
{[%clk 0:01:33.6]} 23. Ke2 {[%clk 0:02:01.6]} 23... Re7 {[%clk 0:01:33.1]} 24.
Re1 {[%clk 0:02:00.8]} 24... Rae8 {[%clk 0:01:32.2]} 25. Kf1 {[%clk 0:02:00]}
25... Kf8 {[%clk 0:01:29.9]} 26. h3 {[%clk 0:01:58.7]} 26... b5 {[%clk 0:01:29]}
27. Kg2 {[%clk 0:01:57.9]} 27... a5 {[%clk 0:01:28.7]} 28. a3 {[%clk 0:01:57.5]}
28... b4 {[%clk 0:01:27.5]} 29. axb4 {[%clk 0:01:56.2]} 29... axb4 {[%clk
0:01:28.4]} 30. cxb4 {[%clk 0:01:51.9]} 30... Rb7 {[%clk 0:01:25.6]} 31. b3
{[%clk 0:01:47.6]} 31... Rxb4 {[%clk 0:01:23.9]} 32. bxc4 {[%clk 0:01:47.3]}
32... Rxc4 {[%clk 0:01:22.4]} 33. R1e2 {[%clk 0:01:46.6]} 33... Rec8 {[%clk
0:01:17.2]} 34. Rxe4 {[%clk 0:01:31.2]} 34... dxe4 {[%clk 0:01:17]} 35. Rxe4
{[%clk 0:01:32.1]} 35... Re8 {[%clk 0:01:14]} 36. Rf4 {[%clk 0:01:31.6]} 36...
Re2 {[%clk 0:01:06.6]} 37. g5 {[%clk 0:01:28.9]} 37... Rc6 {[%clk 0:00:56.8]}
38. Ne5 {[%clk 0:01:22.7]} 38... Rd6 {[%clk 0:00:45.4]} 39. gxf6 {[%clk
0:01:09.4]} 39... gxf6 {[%clk 0:00:43.8]} 40. Ng4 {[%clk 0:01:09.1]} 40... Kg7
{[%clk 0:00:41.7]} 41. Ne3 {[%clk 0:01:08.3]} 41... Rd2 {[%clk 0:00:41.4]} 42.
Nf5+ {[%clk 0:01:07.9]} 42... Kg6 {[%clk 0:00:39.2]} 43. Nxd6 {[%clk 0:01:08.8]}
1-0

[Event "*** Titled Tuesday Blitz"]
[Site "Chess.com"]
[Date "2020.05.05"]
[Round "2"]
[White "Biranidun"]
[Black "AustrianFalcon"]
[Result "1-0"]
[WhiteElo "2725"]
[BlackElo "2497"]
[TimeControl "180+1"]
[EndTime "10:17:23 PDT"]
[Termination "Biranidun won by resignation"]

1. e4 {[%clk 0:03:00.9]} 1... c5 {[%clk 0:02:55.5]} 2. Nf3 {[%clk 0:03:00.9]}
2... Nc6 {[%clk 0:02:52.6]} 3. d4 {[%clk 0:03:01]} 3... cxd4 {[%clk 0:02:52]} 4.
Nxd4 {[%clk 0:03:01.8]} 4... Nf6 {[%clk 0:02:51.2]} 5. Nc3 {[%clk 0:03:02.2]}
5... d6 {[%clk 0:02:51.8]} 6. Bg5 {[%clk 0:03:01.6]} 6... e6 {[%clk 0:02:49.3]}
7. Qd2 {[%clk 0:03:02]} 7... a6 {[%clk 0:02:48.5]} 8. O-O-O {[%clk 0:03:02.2]}
8... Bd7 {[%clk 0:02:47.7]} 9. f4 {[%clk 0:03:02.6]} 9... Be7 {[%clk 0:02:47.2]}
10. Nf3 {[%clk 0:03:01.4]} 10... b5 {[%clk 0:02:42.8]} 11. Bxf6 {[%clk
0:03:01.7]} 11... gxf6 {[%clk 0:02:42.2]} 12. Kb1 {[%clk 0:03:00.6]} 12... Qb6
{[%clk 0:02:40.5]} 13. f5 {[%clk 0:03:01.1]} 13... O-O-O {[%clk 0:02:38.5]} 14.
Qh6 {[%clk 0:03:01.2]} 14... Kb8 {[%clk 0:02:27]} 15. Qh5 {[%clk 0:03:00.3]}
15... Rhf8 {[%clk 0:02:21.8]} 16. Bd3 {[%clk 0:02:57.8]} 16... Ne5 {[%clk
0:02:12]} 17. Ne2 {[%clk 0:02:57.7]} 17... Bc6 {[%clk 0:02:00.7]} 18. Nfd4
{[%clk 0:02:39.8]} 18... Bd7 {[%clk 0:01:56.8]} 19. fxe6 {[%clk 0:02:23.4]}
19... fxe6 {[%clk 0:01:50.6]} 20. Qxh7 {[%clk 0:02:23.2]} 20... Rf7 {[%clk
0:01:42.9]} 21. Qh3 {[%clk 0:02:02.1]} 21... Nxd3 {[%clk 0:01:13.4]} 22. Rxd3
{[%clk 0:01:56.4]} 22... f5 {[%clk 0:01:06.3]} 23. exf5 {[%clk 0:01:49.5]} 23...
e5 {[%clk 0:01:03.8]} 24. Ne6 {[%clk 0:01:49.9]} 24... Bxe6 {[%clk 0:01:00.4]}
25. fxe6 {[%clk 0:01:50.1]} 25... Rf2 {[%clk 0:01:01]} 26. Nc3 {[%clk
0:01:47.3]} 26... d5 {[%clk 0:00:51.4]} 27. Qg3 {[%clk 0:01:12.9]} 27... Rdf8
{[%clk 0:00:38.3]} 28. Qxe5+ {[%clk 0:01:05.5]} 28... Bd6 {[%clk 0:00:31.1]} 29.
Qxd5 {[%clk 0:01:05.6]} 29... Rf1+ {[%clk 0:00:30.4]} 30. Rxf1 {[%clk 0:00:57]}
30... Rxf1+ {[%clk 0:00:17.6]} 31. Rd1 {[%clk 0:00:56.9]} 1-0

[Event "*** Titled Tuesday Blitz"]
[Site "Chess.com"]
[Date "2020.05.05"]
[Round "2"]
[White "Anuar_Is"]
[Black "Hippotaner"]
[Result "1-0"]
[WhiteElo "2773"]
[BlackElo "2335"]
[TimeControl "180+1"]
[EndTime "10:17:24 PDT"]
[Termination "Anuar_Is won by checkmate"]

1. e4 {[%clk 0:03:00.9]} 1... c5 {[%clk 0:02:57.8]} 2. Nf3 {[%clk 0:03:00.7]}
2... Nc6 {[%clk 0:02:53.2]} 3. d4 {[%clk 0:03:00.7]} 3... cxd4 {[%clk
0:02:53.2]} 4. Nxd4 {[%clk 0:03:01.6]} 4... Nf6 {[%clk 0:02:53.3]} 5. Nc3 {[%clk
0:03:01.8]} 5... e5 {[%clk 0:02:53.4]} 6. Ndb5 {[%clk 0:03:02.1]} 6... d6 {[%clk
0:02:53.5]} 7. Bg5 {[%clk 0:03:02.7]} 7... a6 {[%clk 0:02:54]} 8. Bxf6 {[%clk
0:03:02.6]} 8... gxf6 {[%clk 0:02:53.7]} 9. Na3 {[%clk 0:03:03.2]} 9... b5
{[%clk 0:02:54.2]} 10. Nd5 {[%clk 0:03:03.4]} 10... Bg7 {[%clk 0:02:54.4]} 11.
Bd3 {[%clk 0:03:01]} 11... Ne7 {[%clk 0:02:52.8]} 12. Ne3 {[%clk 0:02:57.2]}
12... Be6 {[%clk 0:02:49.6]} 13. c3 {[%clk 0:02:56.6]} 13... O-O {[%clk
0:02:49.6]} 14. Qh5 {[%clk 0:02:54.8]} 14... Ng6 {[%clk 0:02:38.9]} 15. g3
{[%clk 0:02:54.6]} 15... d5 {[%clk 0:02:37.6]} 16. exd5 {[%clk 0:02:53.7]} 16...
Bxd5 {[%clk 0:02:37.8]} 17. O-O {[%clk 0:02:47.1]} 17... Bb7 {[%clk 0:02:18.3]}
18. Rad1 {[%clk 0:02:40.3]} 18... Qc7 {[%clk 0:02:18.4]} 19. Nac2 {[%clk
0:02:32.9]} 19... Rad8 {[%clk 0:02:17.9]} 20. Nf5 {[%clk 0:02:28.3]} 20... Kh8
{[%clk 0:02:12.6]} 21. Nce3 {[%clk 0:02:24.9]} 21... Qc6 {[%clk 0:02:12.3]} 22.
f3 {[%clk 0:02:24.2]} 22... Rd7 {[%clk 0:02:01.4]} 23. Be4 {[%clk 0:02:20.1]}
23... Qc7 {[%clk 0:01:55]} 24. Rxd7 {[%clk 0:01:33.7]} 24... Qxd7 {[%clk
0:01:54.6]} 25. Rd1 {[%clk 0:01:34.2]} 25... Qc7 {[%clk 0:01:54.1]} 26. Bxb7
{[%clk 0:01:31]} 26... Qxb7 {[%clk 0:01:54.3]} 27. Nxg7 {[%clk 0:01:31.5]} 27...
Kxg7 {[%clk 0:01:53.5]} 28. Nf5+ {[%clk 0:01:32.2]} 28... Kh8 {[%clk 0:01:53]}
29. Qh6 {[%clk 0:01:31.7]} 29... Rg8 {[%clk 0:01:46.1]} 30. Kg2 {[%clk
0:01:31.8]} 30... Nf4+ {[%clk 0:01:31.8]} 31. Kf2 {[%clk 0:01:28.5]} 31... Qb6+
{[%clk 0:01:30.6]} 32. Kf1 {[%clk 0:01:28.3]} 32... Qc6 {[%clk 0:01:10.6]} 33.
Nh4 {[%clk 0:01:27.1]} 33... Qc4+ {[%clk 0:01:09.4]} 34. Kg1 {[%clk 0:01:26.7]}
34... Qc5+ {[%clk 0:01:09.6]} 35. Kh1 {[%clk 0:01:24.5]} 35... Ng6 {[%clk
0:00:47.2]} 36. Nxg6+ {[%clk 0:01:17.2]} 36... fxg6 {[%clk 0:00:30.9]} 37. Rd7
{[%clk 0:01:15.3]} 37... Qc6 {[%clk 0:00:24]} 38. Qxh7# {[%clk 0:01:13.1]} 1-0

[Event "*** Titled Tuesday Blitz"]
[Site "Chess.com"]
[Date "2020.05.05"]
[Round "2"]
[White "RitvarsReimanis"]
[Black "PowerThinking2650"]
[Result "1-0"]
[WhiteElo "2543"]
[BlackElo "2288"]
[TimeControl "180+1"]
[EndTime "10:17:26 PDT"]
[Termination "RitvarsReimanis won on time"]

1. d4 {[%clk 0:03:00.9]} 1... Nf6 {[%clk 0:02:58.5]} 2. c4 {[%clk 0:02:59.7]}
2... g6 {[%clk 0:02:58.6]} 3. Nc3 {[%clk 0:02:58.3]} 3... Bg7 {[%clk 0:02:56.1]}
4. e4 {[%clk 0:02:58.2]} 4... d6 {[%clk 0:02:56.4]} 5. Be2 {[%clk 0:02:59.1]}
5... O-O {[%clk 0:02:55.7]} 6. Nf3 {[%clk 0:02:59.6]} 6... e5 {[%clk 0:02:53.3]}
7. O-O {[%clk 0:03:00]} 7... Nc6 {[%clk 0:02:53.2]} 8. d5 {[%clk 0:03:00]} 8...
Ne7 {[%clk 0:02:51.3]} 9. Kh1 {[%clk 0:03:00.4]} 9... Nh5 {[%clk 0:02:48.7]} 10.
Ng1 {[%clk 0:02:59.4]} 10... Nf4 {[%clk 0:02:46.2]} 11. Bf3 {[%clk 0:02:47.6]}
11... f5 {[%clk 0:02:36.9]} 12. g3 {[%clk 0:02:47.4]} 12... fxe4 {[%clk
0:02:35.3]} 13. Nxe4 {[%clk 0:02:47.5]} 13... Nh3 {[%clk 0:02:34.1]} 14. Bg4
{[%clk 0:02:44.2]} 14... Nxg1 {[%clk 0:02:27.3]} 15. Bxc8 {[%clk 0:02:27.4]}
15... Rxc8 {[%clk 0:02:15.5]} 16. Kxg1 {[%clk 0:02:26]} 16... h6 {[%clk
0:02:12]} 17. Qg4 {[%clk 0:02:10.4]} 17... c6 {[%clk 0:01:58.7]} 18. Qe6+ {[%clk
0:02:01.8]} 18... Kh7 {[%clk 0:01:53.2]} 19. Nxd6 {[%clk 0:02:02.1]} 19... Rf6
{[%clk 0:01:37.2]} 20. Nxb7 {[%clk 0:01:36.6]} 20... Qc7 {[%clk 0:01:03.8]} 21.
d6 {[%clk 0:01:34]} 21... Qxb7 {[%clk 0:00:36.4]} 22. Qxe7 {[%clk 0:01:29.9]}
22... Qxe7 {[%clk 0:00:31.3]} 23. dxe7 {[%clk 0:01:29.4]} 23... Re8 {[%clk
0:00:31.8]} 24. Be3 {[%clk 0:01:24.6]} 24... Rxe7 {[%clk 0:00:31.3]} 25. Rad1
{[%clk 0:01:24.4]} 25... e4 {[%clk 0:00:20.4]} 26. Bc5 {[%clk 0:01:22.2]} 26...
Ref7 {[%clk 0:00:15.3]} 27. b3 {[%clk 0:01:20.9]} 27... Rf3 {[%clk 0:00:13.6]}
28. Rfe1 {[%clk 0:01:18.7]} 28... h5 {[%clk 0:00:09.5]} 29. Rxe4 {[%clk
0:01:17.5]} 29... Rc3 {[%clk 0:00:08.2]} 30. Re2 {[%clk 0:01:15.4]} 30... h4
{[%clk 0:00:07.6]} 31. Kg2 {[%clk 0:01:13.7]} 31... Bh6 {[%clk 0:00:05.4]} 32.
Rd4 {[%clk 0:01:07.5]} 32... hxg3 {[%clk 0:00:04.4]} 33. hxg3 {[%clk 0:01:07.2]}
1-0

[Event "*** Titled Tuesday Blitz"]
[Site "Chess.com"]
[Date "2020.05.05"]
[Round "2"]
[White "serhanberat_ozdemir"]
[Black "atwalcb"]
[Result "1-0"]
[WhiteElo "2468"]
[BlackElo "2240"]
[TimeControl "180+1"]
[EndTime "10:17:29 PDT"]
[Termination "serhanberat_ozdemir won by resignation"]

1. e4 {[%clk 0:03:00.8]} 1... d6 {[%clk 0:03:00.2]} 2. d4 {[%clk 0:03:00.7]}
2... Nf6 {[%clk 0:03:00.9]} 3. Nc3 {[%clk 0:03:01.1]} 3... Nbd7 {[%clk
0:03:01.5]} 4. Nf3 {[%clk 0:03:00.7]} 4... e5 {[%clk 0:03:02.1]} 5. g4 {[%clk
0:03:01.2]} 5... Nxg4 {[%clk 0:02:58.6]} 6. Rg1 {[%clk 0:03:00.9]} 6... exd4
{[%clk 0:02:57.1]} 7. Nxd4 {[%clk 0:02:59.3]} 7... Nge5 {[%clk 0:02:50.7]} 8.
Nf5 {[%clk 0:02:33.9]} 8... g6 {[%clk 0:02:43.3]} 9. Ne3 {[%clk 0:02:29.2]} 9...
Qh4 {[%clk 0:02:37]} 10. Ned5 {[%clk 0:01:30.2]} 10... Qd8 {[%clk 0:01:47.3]}
11. Nb5 {[%clk 0:01:20.8]} 11... Nc5 {[%clk 0:01:09]} 12. Nbxc7+ {[%clk
0:01:13.5]} 12... Kd7 {[%clk 0:01:09]} 13. Nxa8 {[%clk 0:01:02.6]} 13... Nxe4
{[%clk 0:01:02]} 14. Be3 {[%clk 0:00:51.3]} 14... f5 {[%clk 0:00:50.6]} 15. c3
{[%clk 0:00:38.8]} 15... Bg7 {[%clk 0:00:39.4]} 16. Nac7 {[%clk 0:00:33.8]}
16... a6 {[%clk 0:00:34.4]} 17. Qc2 {[%clk 0:00:27.2]} 17... Nf3+ {[%clk
0:00:31.7]} 18. Kd1 {[%clk 0:00:24.4]} 18... Nxg1 {[%clk 0:00:31.8]} 19. Qa4+
{[%clk 0:00:19.8]} 19... b5 {[%clk 0:00:28.5]} 20. Bxb5+ {[%clk 0:00:16.1]} 1-0